[Event "*** SCC Grand Prix: Titled Tuesday Blitz"]
[Site "Chess.com"]
[Date "2020.09.08"]
[Round "3"]
[White "ChessWarrior3"]
[Black "MashaFromRussia"]
[Result "0-1"]
[WhiteElo "2154"]
[BlackElo "2369"]
[TimeControl "180+1"]
[EndTime "10:30:11 PDT"]
[Termination "MashaFromRussia won by resignation"]

1. e4 {[%clk 0:03:00.9]} 1... c5 {[%clk 0:03:00]} 2. Nf3 {[%clk 0:02:58.7]} 2...
Nc6 {[%clk 0:03:00.2]} 3. d4 {[%clk 0:02:57.7]} 3... cxd4 {[%clk 0:03:01.1]} 4.
Nxd4 {[%clk 0:02:58.3]} 4... Nf6 {[%clk 0:03:01.5]} 5. Nc3 {[%clk 0:02:56]} 5...
e5 {[%clk 0:03:01.8]} 6. Ndb5 {[%clk 0:02:54.4]} 6... d6 {[%clk 0:03:01.2]} 7.
Bg5 {[%clk 0:02:53.4]} 7... a6 {[%clk 0:02:59.5]} 8. Na3 {[%clk 0:02:52.7]} 8...
b5 {[%clk 0:03:00]} 9. Bxf6 {[%clk 0:02:52.1]} 9... gxf6 {[%clk 0:02:59.8]} 10.
Nd5 {[%clk 0:02:52.2]} 10... f5 {[%clk 0:03:00]} 11. Bd3 {[%clk 0:02:51.6]}
11... Be6 {[%clk 0:02:59.2]} 12. O-O {[%clk 0:02:47.7]} 12... Bg7 {[%clk
0:02:57.6]} 13. c3 {[%clk 0:02:42.3]} 13... O-O {[%clk 0:02:56.8]} 14. Re1
{[%clk 0:02:40.7]} 14... Rc8 {[%clk 0:02:52.7]} 15. Qh5 {[%clk 0:02:16.1]} 15...
fxe4 {[%clk 0:02:47.7]} 16. Bxe4 {[%clk 0:02:11]} 16... f5 {[%clk 0:02:47.8]}
17. Bf3 {[%clk 0:02:07.2]} 17... e4 {[%clk 0:02:45.6]} 18. Rad1 {[%clk
0:02:05.1]} 18... Bf7 {[%clk 0:02:41]} 19. Qxf5 {[%clk 0:01:58.7]} 19... exf3
{[%clk 0:02:40.5]} 20. Qxf3 {[%clk 0:01:55.9]} 20... Ne5 {[%clk 0:02:39.9]} 21.
Qg3 {[%clk 0:01:54.7]} 21... Kh8 {[%clk 0:02:28.6]} 22. f4 {[%clk 0:01:52.3]}
22... Ng6 {[%clk 0:02:19.2]} 23. f5 {[%clk 0:01:43]} 23... Ne5 {[%clk 0:02:17]}
24. Rf1 {[%clk 0:01:37.1]} 24... Bxd5 {[%clk 0:02:06.3]} 25. Rxd5 {[%clk
0:01:35.7]} 25... Qf6 {[%clk 0:02:06.5]} 26. Nc2 {[%clk 0:01:29.4]} 26... Rg8
{[%clk 0:02:00.9]} 27. Qh3 {[%clk 0:01:26.9]} 27... Rc4 {[%clk 0:01:55.5]} 28.
Rd4 {[%clk 0:01:22.5]} 28... Nc6 {[%clk 0:01:44.8]} 29. Rdf4 {[%clk 0:01:16.7]}
29... Rxf4 {[%clk 0:01:43]} 30. Rxf4 {[%clk 0:01:17.6]} 30... b4 {[%clk
0:01:39.1]} 31. Rh4 {[%clk 0:01:10.8]} 31... h6 {[%clk 0:01:32.3]} 32. Nxb4
{[%clk 0:01:07.7]} 32... Nxb4 {[%clk 0:01:27.9]} 33. Rxb4 {[%clk 0:01:08.6]}
33... Qe5 {[%clk 0:01:19.2]} 34. Qg3 {[%clk 0:00:53.5]} 34... Qxf5 {[%clk
0:01:08.7]} 35. Qf2 {[%clk 0:00:42.7]} 35... Qb1+ {[%clk 0:01:02.4]} 36. Qf1
{[%clk 0:00:37]} 36... Qg6 {[%clk 0:01:02.9]} 37. h3 {[%clk 0:00:33.7]} 37...
Rf8 {[%clk 0:01:02.5]} 38. Qe1 {[%clk 0:00:25.3]} 38... Be5 {[%clk 0:01:02.3]}
39. Rg4 {[%clk 0:00:22.3]} 39... Qd3 {[%clk 0:00:58.2]} 40. Qc1 {[%clk
0:00:15.9]} 40... Kh7 {[%clk 0:00:53.1]} 41. Rh4 {[%clk 0:00:12.8]} 41... Rf6
{[%clk 0:00:50.6]} 42. Rb4 {[%clk 0:00:11.8]} 42... Bg3 {[%clk 0:00:32.9]} 43.
Rb7+ {[%clk 0:00:10.2]} 43... Kg6 {[%clk 0:00:32.4]} 44. Re7 {[%clk 0:00:09.4]}
44... Bf2+ {[%clk 0:00:31.5]} 45. Kh1 {[%clk 0:00:08.7]} 45... Bc5 {[%clk
0:00:30.7]} 46. Re1 {[%clk 0:00:06.7]} 46... a5 {[%clk 0:00:25.6]} 47. a3 {[%clk
0:00:04.7]} 47... a4 {[%clk 0:00:25.4]} 48. Qd1 {[%clk 0:00:03.7]} 48... Qxd1
{[%clk 0:00:25.3]} 49. Rxd1 {[%clk 0:00:04.6]} 49... Rf2 {[%clk 0:00:25.9]} 50.
Rb1 {[%clk 0:00:04.9]} 50... Kf5 {[%clk 0:00:25.4]} 51. Kh2 {[%clk 0:00:05.3]}
51... Ke4 {[%clk 0:00:25.2]} 52. Kg3 {[%clk 0:00:05]} 52... Kd3 {[%clk
0:00:23.2]} 53. h4 {[%clk 0:00:05]} 53... Kc2 {[%clk 0:00:22.8]} 54. Kh3 {[%clk
0:00:05.1]} 54... Kxb1 {[%clk 0:00:22.5]} 0-1

[Event "*** SCC Grand Prix: Titled Tuesday Blitz"]
[Site "Chess.com"]
[Date "2020.09.08"]
[Round "3"]
[White "LyonBeast"]
[Black "Arjun2002"]
[Result "1/2-1/2"]
[WhiteElo "3017"]
[BlackElo "2723"]
[TimeControl "180+1"]
[EndTime "10:30:12 PDT"]
[Termination "Game drawn by repetition"]

1. c4 {[%clk 0:03:00.9]} 1... c6 {[%clk 0:02:59.5]} 2. Nf3 {[%clk 0:02:58.6]}
2... d5 {[%clk 0:02:59.5]} 3. e3 {[%clk 0:02:56.3]} 3... Nf6 {[%clk 0:02:58.9]}
4. b3 {[%clk 0:02:55.1]} 4... e6 {[%clk 0:02:55.9]} 5. Bb2 {[%clk 0:02:50.7]}
5... Bd6 {[%clk 0:02:55.7]} 6. Be2 {[%clk 0:02:49.8]} 6... O-O {[%clk
0:02:55.4]} 7. O-O {[%clk 0:02:47.7]} 7... Nbd7 {[%clk 0:02:53.4]} 8. d4 {[%clk
0:02:47.8]} 8... b6 {[%clk 0:02:52.4]} 9. Nbd2 {[%clk 0:02:47.7]} 9... Bb7
{[%clk 0:02:51.5]} 10. Rc1 {[%clk 0:02:40]} 10... Qe7 {[%clk 0:02:50.6]} 11. Ne5
{[%clk 0:02:39.2]} 11... c5 {[%clk 0:02:43.5]} 12. Bf3 {[%clk 0:02:39.3]} 12...
Rac8 {[%clk 0:02:37.8]} 13. Re1 {[%clk 0:02:34.3]} 13... Rfd8 {[%clk 0:02:37.2]}
14. Nxd7 {[%clk 0:02:28.8]} 14... Rxd7 {[%clk 0:02:30.7]} 15. dxc5 {[%clk
0:02:28.6]} 15... Bxc5 {[%clk 0:02:20.9]} 16. Qe2 {[%clk 0:02:28.5]} 16... Rcd8
{[%clk 0:02:12.9]} 17. cxd5 {[%clk 0:02:26]} 17... Bxd5 {[%clk 0:02:05.3]} 18.
Nc4 {[%clk 0:02:25]} 18... h6 {[%clk 0:01:42.2]} 19. Ne5 {[%clk 0:02:14.2]}
19... Rd6 {[%clk 0:01:30.6]} 20. Bxd5 {[%clk 0:02:08.5]} 20... Nxd5 {[%clk
0:01:28.7]} 21. a3 {[%clk 0:02:03.3]} 21... a5 {[%clk 0:01:27.9]} 22. Nd3 {[%clk
0:01:52.7]} 22... Nf4 {[%clk 0:01:02.3]} 23. Qg4 {[%clk 0:01:36]} 23... f5
{[%clk 0:00:52.1]} 24. Qxf4 {[%clk 0:01:20.7]} 24... Rxd3 {[%clk 0:00:52.1]} 25.
Qa4 {[%clk 0:01:17.6]} 25... Qd7 {[%clk 0:00:47.7]} 26. Qc4 {[%clk 0:01:11.8]}
26... Qd5 {[%clk 0:00:46.7]} 27. b4 {[%clk 0:01:12.2]} 27... axb4 {[%clk
0:00:43.2]} 28. axb4 {[%clk 0:01:11.9]} 28... Qxc4 {[%clk 0:00:43.2]} 29. Rxc4
{[%clk 0:01:12.8]} 29... Bf8 {[%clk 0:00:31.8]} 30. Bd4 {[%clk 0:01:05.7]} 30...
b5 {[%clk 0:00:30.3]} 31. Rc6 {[%clk 0:01:05.9]} 31... Bxb4 {[%clk 0:00:29.5]}
32. Rf1 {[%clk 0:01:03.8]} 32... Bd6 {[%clk 0:00:27.4]} 33. f4 {[%clk
0:01:01.7]} 33... b4 {[%clk 0:00:24.9]} 34. Rb6 {[%clk 0:01:02]} 34... Rd7
{[%clk 0:00:19.2]} 35. g3 {[%clk 0:01:02.3]} 35... Kf7 {[%clk 0:00:19.2]} 36.
Ra1 {[%clk 0:00:59.9]} 36... Ra3 {[%clk 0:00:18.9]} 37. Rc1 {[%clk 0:00:59.6]}
37... Ra2 {[%clk 0:00:17.5]} 38. Rcc6 {[%clk 0:00:55.3]} 38... Be7 {[%clk
0:00:14.7]} 39. h4 {[%clk 0:00:50.8]} 39... Bf6 {[%clk 0:00:13.7]} 40. Rxb4
{[%clk 0:00:49.2]} 40... Bxd4 {[%clk 0:00:13.6]} 41. Rxd4 {[%clk 0:00:48.5]}
41... Rxd4 {[%clk 0:00:13.6]} 42. exd4 {[%clk 0:00:49.4]} 42... Rd2 {[%clk
0:00:13.7]} 43. Rc7+ {[%clk 0:00:47.8]} 43... Kf6 {[%clk 0:00:13.9]} 44. Rd7
{[%clk 0:00:47.1]} 44... h5 {[%clk 0:00:13.6]} 45. Kf1 {[%clk 0:00:46.9]} 45...
g6 {[%clk 0:00:13.8]} 46. Kg1 {[%clk 0:00:47.2]} 46... Rc2 {[%clk 0:00:13.3]}
47. Kf1 {[%clk 0:00:46.2]} 47... Rd2 {[%clk 0:00:13.5]} 48. Kg1 {[%clk
0:00:45.5]} 48... Rc2 {[%clk 0:00:13.9]} 49. Rb7 {[%clk 0:00:44.2]} 49... Rd2
{[%clk 0:00:13.7]} 50. Rb4 {[%clk 0:00:44.8]} 50... Ke7 {[%clk 0:00:13.5]} 51.
Kf1 {[%clk 0:00:44.7]} 51... Kf6 {[%clk 0:00:13.4]} 52. Ke1 {[%clk 0:00:45]}
52... Ra2 {[%clk 0:00:13.5]} 53. Rb3 {[%clk 0:00:43.8]} 53... Rg2 {[%clk
0:00:13.2]} 54. Re3 {[%clk 0:00:39.5]} 54... Ra2 {[%clk 0:00:12.4]} 55. Re2
{[%clk 0:00:39]} 55... Ra3 {[%clk 0:00:11.6]} 56. Kf2 {[%clk 0:00:38.7]} 56...
Rd3 {[%clk 0:00:11.7]} 57. Re3 {[%clk 0:00:38.4]} 57... Rxd4 {[%clk 0:00:12]}
58. Ra3 {[%clk 0:00:38.8]} 58... Rd6 {[%clk 0:00:12.2]} 59. Kf3 {[%clk
0:00:39.3]} 59... e5 {[%clk 0:00:12.3]} 60. fxe5+ {[%clk 0:00:39.3]} 60... Kxe5
{[%clk 0:00:13.2]} 61. Ra5+ {[%clk 0:00:39.8]} 61... Kf6 {[%clk 0:00:13.5]} 62.
Ra3 {[%clk 0:00:40.7]} 62... Re6 {[%clk 0:00:12.1]} 63. Ra8 {[%clk 0:00:40.5]}
63... Ke5 {[%clk 0:00:11.7]} 64. Ra5+ {[%clk 0:00:40]} 64... Kf6 {[%clk
0:00:12.1]} 65. Ra4 {[%clk 0:00:40.9]} 65... Rd6 {[%clk 0:00:12.4]} 66. Ra3
{[%clk 0:00:41.2]} 66... Ke5 {[%clk 0:00:12.5]} 67. Ra5+ {[%clk 0:00:41.3]}
67... Rd5 {[%clk 0:00:12.6]} 68. Ra3 {[%clk 0:00:42.2]} 68... Rd6 {[%clk
0:00:12]} 1/2-1/2

[Event "*** SCC Grand Prix: Titled Tuesday Blitz"]
[Site "Chess.com"]
[Date "2020.09.08"]
[Round "3"]
[White "GM_LOADING"]
[Black "DishonorOnYourCow"]
[Result "1-0"]
[WhiteElo "2548"]
[BlackElo "2348"]
[TimeControl "180+1"]
[EndTime "10:30:12 PDT"]
[Termination "GM_LOADING won by resignation"]

1. e4 {[%clk 0:03:00.9]} 1... c5 {[%clk 0:02:57.8]} 2. Nf3 {[%clk 0:02:57.6]}
2... d6 {[%clk 0:02:57.8]} 3. d4 {[%clk 0:02:55.9]} 3... cxd4 {[%clk 0:02:58.7]}
4. Nxd4 {[%clk 0:02:48.8]} 4... Nf6 {[%clk 0:02:58.5]} 5. Nc3 {[%clk 0:02:48.3]}
5... a6 {[%clk 0:02:57.5]} 6. Be2 {[%clk 0:02:40.4]} 6... e5 {[%clk 0:02:54]} 7.
Nf3 {[%clk 0:02:38.4]} 7... Be7 {[%clk 0:02:45]} 8. O-O {[%clk 0:02:36.2]} 8...
O-O {[%clk 0:02:38]} 9. Bg5 {[%clk 0:02:33.5]} 9... h6 {[%clk 0:02:35.1]} 10.
Bxf6 {[%clk 0:02:33.4]} 10... Bxf6 {[%clk 0:02:35.5]} 11. Nd5 {[%clk 0:02:34]}
11... Nc6 {[%clk 0:02:23.9]} 12. a4 {[%clk 0:02:26.8]} 12... Be6 {[%clk
0:01:41.3]} 13. Bc4 {[%clk 0:02:24.2]} 13... Rc8 {[%clk 0:01:32.2]} 14. Ba2
{[%clk 0:02:19.1]} 14... Bg5 {[%clk 0:01:22.8]} 15. c3 {[%clk 0:02:17.5]} 15...
Ne7 {[%clk 0:01:15]} 16. Qd3 {[%clk 0:02:06.3]} 16... Rc5 {[%clk 0:01:03.4]} 17.
Nxe7+ {[%clk 0:01:58.4]} 17... Qxe7 {[%clk 0:01:01.9]} 18. Bxe6 {[%clk
0:01:58.4]} 18... Qxe6 {[%clk 0:01:01.5]} 19. Rfd1 {[%clk 0:01:55.5]} 19... Rd8
{[%clk 0:00:56.9]} 20. h4 {[%clk 0:01:43.9]} 20... Be7 {[%clk 0:00:47.6]} 21. g3
{[%clk 0:01:42.5]} 21... d5 {[%clk 0:00:46.2]} 22. Qe2 {[%clk 0:01:39.6]} 22...
dxe4 {[%clk 0:00:41.5]} 23. Rxd8+ {[%clk 0:01:38.3]} 23... Bxd8 {[%clk
0:00:42.4]} 24. Qxe4 {[%clk 0:01:38.9]} 24... Qe7 {[%clk 0:00:31.5]} 25. Rd1
{[%clk 0:01:34.7]} 25... Qc7 {[%clk 0:00:29.5]} 26. Qf5 {[%clk 0:01:28.4]} 26...
Bf6 {[%clk 0:00:24.6]} 27. Kg2 {[%clk 0:01:01.6]} 27... Qc6 {[%clk 0:00:22.3]}
28. Qd7 {[%clk 0:00:57.6]} 28... Qxd7 {[%clk 0:00:18.5]} 29. Rxd7 {[%clk
0:00:57.6]} 29... b5 {[%clk 0:00:19.4]} 30. axb5 {[%clk 0:00:57.3]} 30... Rxb5
{[%clk 0:00:16.9]} 31. Rd2 {[%clk 0:00:51.8]} 31... a5 {[%clk 0:00:15.6]} 32.
Re2 {[%clk 0:00:49.9]} 32... a4 {[%clk 0:00:15]} 33. Ne1 {[%clk 0:00:49.7]}
33... Rb3 {[%clk 0:00:13.6]} 34. Rc2 {[%clk 0:00:41.7]} 34... a3 {[%clk
0:00:13.2]} 35. bxa3 {[%clk 0:00:41.6]} 35... Rxa3 {[%clk 0:00:14.1]} 36. c4
{[%clk 0:00:41.7]} 36... Ra6 {[%clk 0:00:13.8]} 37. c5 {[%clk 0:00:38.8]} 37...
Rc6 {[%clk 0:00:14.3]} 38. Nd3 {[%clk 0:00:35.6]} 38... Be7 {[%clk 0:00:14.7]}
39. Kf3 {[%clk 0:00:21.6]} 39... f6 {[%clk 0:00:11.8]} 40. Ke4 {[%clk
0:00:19.7]} 40... Kf7 {[%clk 0:00:12]} 41. Kd5 {[%clk 0:00:18.5]} 41... Rc8
{[%clk 0:00:12.5]} 42. c6 {[%clk 0:00:19]} 42... Rd8+ {[%clk 0:00:12.3]} 43. Ke4
{[%clk 0:00:19.2]} 43... Ke6 {[%clk 0:00:07.3]} 44. g4 {[%clk 0:00:07.3]} 44...
Rc8 {[%clk 0:00:06.8]} 45. h5 {[%clk 0:00:06.9]} 45... Rc7 {[%clk 0:00:04.5]}
46. f4 {[%clk 0:00:06.1]} 46... exf4 {[%clk 0:00:03.3]} 47. Nxf4+ {[%clk
0:00:06.4]} 47... Kd6 {[%clk 0:00:03.8]} 48. Nd5 {[%clk 0:00:06.9]} 48... Rc8
{[%clk 0:00:02.4]} 49. Nxe7 {[%clk 0:00:05.5]} 49... Kxe7 {[%clk 0:00:03.3]} 50.
Kf5 {[%clk 0:00:06.1]} 50... Kf7 {[%clk 0:00:03.2]} 51. c7 {[%clk 0:00:06.4]}
51... Ke7 {[%clk 0:00:03.6]} 52. Kg6 {[%clk 0:00:06.7]} 52... Kd7 {[%clk
0:00:03.6]} 53. Kxg7 {[%clk 0:00:06.5]} 1-0

[Event "*** SCC Grand Prix: Titled Tuesday Blitz"]
[Site "Chess.com"]
[Date "2020.09.08"]
[Round "3"]
[White "Resignify"]
[Black "elohunter1999"]
[Result "0-1"]
[WhiteElo "2227"]
[BlackElo "2447"]
[TimeControl "180+1"]
[EndTime "10:30:12 PDT"]
[Termination "elohunter1999 won on time"]

1. e4 {[%clk 0:03:00.9]} 1... e5 {[%clk 0:02:59.2]} 2. Nf3 {[%clk 0:03:00.5]}
2... Nc6 {[%clk 0:02:59.5]} 3. Bb5 {[%clk 0:03:00.2]} 3... a6 {[%clk 0:02:59.5]}
4. Ba4 {[%clk 0:03:00.4]} 4... Nf6 {[%clk 0:02:59.4]} 5. O-O {[%clk 0:03:00.5]}
5... b5 {[%clk 0:02:59.8]} 6. Bb3 {[%clk 0:03:00.1]} 6... Bc5 {[%clk 0:03:00.7]}
7. c3 {[%clk 0:02:59]} 7... d6 {[%clk 0:03:00.6]} 8. d4 {[%clk 0:02:58.2]} 8...
Bb6 {[%clk 0:03:00.4]} 9. Re1 {[%clk 0:02:49.4]} 9... O-O {[%clk 0:02:43]} 10.
h3 {[%clk 0:02:49]} 10... Bb7 {[%clk 0:02:41.4]} 11. a4 {[%clk 0:02:37.4]} 11...
h6 {[%clk 0:02:39.3]} 12. dxe5 {[%clk 0:02:15.1]} 12... Nxe5 {[%clk 0:02:33.5]}
13. Nxe5 {[%clk 0:02:13]} 13... dxe5 {[%clk 0:02:34.4]} 14. Nd2 {[%clk
0:02:00.4]} 14... Qe7 {[%clk 0:02:27.5]} 15. Qf3 {[%clk 0:01:48.6]} 15... Rad8
{[%clk 0:02:14.6]} 16. Nf1 {[%clk 0:01:40.4]} 16... c5 {[%clk 0:02:01.6]} 17.
axb5 {[%clk 0:01:35.1]} 17... axb5 {[%clk 0:02:01.2]} 18. Bc2 {[%clk 0:01:28.6]}
18... Kh7 {[%clk 0:01:29.1]} 19. Ng3 {[%clk 0:01:27]} 19... g6 {[%clk
0:01:28.8]} 20. Be3 {[%clk 0:01:12.6]} 20... Ng8 {[%clk 0:01:05.1]} 21. Qe2
{[%clk 0:01:03.5]} 21... Bc6 {[%clk 0:01:05.2]} 22. b4 {[%clk 0:00:51.3]} 22...
Rb8 {[%clk 0:00:59]} 23. Ra6 {[%clk 0:00:45.6]} 23... Qc7 {[%clk 0:00:42.5]} 24.
Rxb6 {[%clk 0:00:38.4]} 24... Qxb6 {[%clk 0:00:36.3]} 25. Bxc5 {[%clk
0:00:38.7]} 25... Qc7 {[%clk 0:00:37.2]} 26. Bxf8 {[%clk 0:00:38.1]} 26... Rxf8
{[%clk 0:00:38.1]} 27. Bd3 {[%clk 0:00:36.1]} 27... Nf6 {[%clk 0:00:33.2]} 28.
Bxb5 {[%clk 0:00:27.7]} 28... Bxb5 {[%clk 0:00:33.2]} 29. Qxb5 {[%clk
0:00:28.1]} 29... Qxc3 {[%clk 0:00:34.1]} 30. Rd1 {[%clk 0:00:13.7]} 30... Qc2
{[%clk 0:00:25.6]} 31. Qd3 {[%clk 0:00:13.4]} 31... Qc7 {[%clk 0:00:18.1]} 32.
Qd6 {[%clk 0:00:12.5]} 32... Qxd6 {[%clk 0:00:16.7]} 33. Rxd6 {[%clk 0:00:13.4]}
33... Kg7 {[%clk 0:00:17.6]} 34. Rb6 {[%clk 0:00:08.8]} 34... Rc8 {[%clk
0:00:18]} 35. Kh2 {[%clk 0:00:08]} 35... Rc2 {[%clk 0:00:17.6]} 36. Nh1 {[%clk
0:00:05]} 36... h5 {[%clk 0:00:17.9]} 37. g3 {[%clk 0:00:04.5]} 37... Nxe4
{[%clk 0:00:18.1]} 38. b5 {[%clk 0:00:03.5]} 38... Nxf2 {[%clk 0:00:18]} 39.
Nxf2 {[%clk 0:00:03.2]} 39... Rxf2+ {[%clk 0:00:18.9]} 40. Kg1 {[%clk
0:00:03.5]} 40... Rb2 {[%clk 0:00:19.6]} 41. Rb7 {[%clk 0:00:03.5]} 41... Kf6
{[%clk 0:00:18.9]} 42. b6 {[%clk 0:00:03.6]} 42... Ke6 {[%clk 0:00:15.5]} 43.
Rb8 {[%clk 0:00:03.7]} 43... Kf6 {[%clk 0:00:15]} 44. Rb7 {[%clk 0:00:03.5]}
44... Kg7 {[%clk 0:00:14.7]} 45. Rb8 {[%clk 0:00:03.2]} 45... e4 {[%clk
0:00:15.1]} 46. Re8 {[%clk 0:00:02.3]} 46... f5 {[%clk 0:00:14.5]} 47. Re7+
{[%clk 0:00:02.1]} 47... Kf6 {[%clk 0:00:14.8]} 48. Rb7 {[%clk 0:00:02.5]} 48...
Ke5 {[%clk 0:00:14.5]} 49. Rb8 {[%clk 0:00:02.9]} 49... Kd4 {[%clk 0:00:14.6]}
50. b7 {[%clk 0:00:02.9]} 50... Ke3 {[%clk 0:00:15.3]} 51. g4 {[%clk 0:00:01.9]}
51... hxg4 {[%clk 0:00:14.8]} 52. hxg4 {[%clk 0:00:02.8]} 52... f4 {[%clk
0:00:15.6]} 53. Re8 {[%clk 0:00:02.3]} 53... Rxb7 {[%clk 0:00:15.1]} 54. Re6
{[%clk 0:00:02.2]} 54... f3 {[%clk 0:00:14.5]} 55. Re5 {[%clk 0:00:01.6]} 55...
Rb1+ {[%clk 0:00:14.5]} 0-1

[Event "*** SCC Grand Prix: Titled Tuesday Blitz"]
[Site "Chess.com"]
[Date "2020.09.08"]
[Round "3"]
[White "chegueps"]
[Black "Sultanasharminshirin"]
[Result "1-0"]
[WhiteElo "2469"]
[BlackElo "2014"]
[TimeControl "180+1"]
[EndTime "10:30:14 PDT"]
[Termination "chegueps won on time"]

1. d4 {[%clk 0:02:59.7]} 1... d5 {[%clk 0:02:58.3]} 2. c4 {[%clk 0:02:43.1]}
2... c6 {[%clk 0:02:57.5]} 3. Nf3 {[%clk 0:02:14.8]} 3... Nf6 {[%clk 0:02:57]}
4. e3 {[%clk 0:02:14.6]} 4... Bg4 {[%clk 0:02:40.2]} 5. Nc3 {[%clk 0:02:12.9]}
5... e6 {[%clk 0:02:39.8]} 6. Bd3 {[%clk 0:02:10.8]} 6... Nbd7 {[%clk
0:02:38.8]} 7. h3 {[%clk 0:02:10.6]} 7... Bh5 {[%clk 0:02:38]} 8. Qb3 {[%clk
0:02:01.4]} 8... Qc7 {[%clk 0:02:32.4]} 9. Bd2 {[%clk 0:01:55.7]} 9... Bd6
{[%clk 0:02:23.3]} 10. Rc1 {[%clk 0:01:51.8]} 10... dxc4 {[%clk 0:02:17.6]} 11.
Bxc4 {[%clk 0:01:49.8]} 11... Bxf3 {[%clk 0:02:14.9]} 12. gxf3 {[%clk
0:01:49.5]} 12... O-O {[%clk 0:02:14.4]} 13. f4 {[%clk 0:01:49.7]} 13... a6
{[%clk 0:02:10.9]} 14. a4 {[%clk 0:01:48.4]} 14... Rab8 {[%clk 0:01:57.3]} 15.
a5 {[%clk 0:01:44.6]} 15... Qd8 {[%clk 0:01:54.8]} 16. Na4 {[%clk 0:01:42.4]}
16... Qe7 {[%clk 0:01:53.4]} 17. Rg1 {[%clk 0:01:39.4]} 17... c5 {[%clk
0:01:51.3]} 18. Bc3 {[%clk 0:01:36.3]} 18... cxd4 {[%clk 0:01:48.3]} 19. Bxd4
{[%clk 0:01:37.2]} 19... e5 {[%clk 0:01:44.8]} 20. fxe5 {[%clk 0:01:34.6]} 20...
Nxe5 {[%clk 0:01:39.4]} 21. Be2 {[%clk 0:01:34]} 21... Bb4+ {[%clk 0:01:31.2]}
22. Kf1 {[%clk 0:01:28.3]} 22... Bxa5 {[%clk 0:01:27.9]} 23. Bc5 {[%clk
0:01:11.7]} 23... Ne4 {[%clk 0:01:19.3]} 24. Bxe7 {[%clk 0:01:02.3]} 24... Nd2+
{[%clk 0:01:18.7]} 25. Kg2 {[%clk 0:01:02.9]} 25... Nxb3 {[%clk 0:01:17.7]} 26.
Rcd1 {[%clk 0:00:55.8]} 26... Rfe8 {[%clk 0:01:14.2]} 27. Bd6 {[%clk 0:00:50.4]}
27... Rbc8 {[%clk 0:01:13.8]} 28. Rd5 {[%clk 0:00:45]} 28... Ng6 {[%clk
0:01:10.5]} 29. Bd1 {[%clk 0:00:41.9]} 29... b5 {[%clk 0:00:54.3]} 30. Bxb3
{[%clk 0:00:33.9]} 30... bxa4 {[%clk 0:00:54]} 31. Bxa4 {[%clk 0:00:33.1]} 31...
Red8 {[%clk 0:00:45.2]} 32. Rgd1 {[%clk 0:00:31]} 32... Bb6 {[%clk 0:00:40.3]}
33. b4 {[%clk 0:00:27.2]} 33... h6 {[%clk 0:00:39.1]} 34. Kg3 {[%clk 0:00:19.6]}
34... Nf8 {[%clk 0:00:38.1]} 35. Bc5 {[%clk 0:00:14.1]} 35... Rxd5 {[%clk
0:00:34.6]} 36. Rxd5 {[%clk 0:00:15]} 36... Bc7+ {[%clk 0:00:32.3]} 37. Kf3
{[%clk 0:00:12.8]} 37... Ne6 {[%clk 0:00:32.1]} 38. Bd7 {[%clk 0:00:12.4]} 38...
Rd8 {[%clk 0:00:28.4]} 39. Be7 {[%clk 0:00:12.1]} 39... Ng5+ {[%clk 0:00:25.4]}
40. Kg4 {[%clk 0:00:07]} 40... f5+ {[%clk 0:00:18]} 41. Kxf5 {[%clk 0:00:06.4]}
41... Re8 {[%clk 0:00:15.7]} 42. Bxe8 {[%clk 0:00:06.2]} 42... Nxh3 {[%clk
0:00:11.2]} 43. Kg6 {[%clk 0:00:05.9]} 43... Ng5 {[%clk 0:00:08.2]} 44. Bxg5
{[%clk 0:00:05.3]} 44... hxg5 {[%clk 0:00:07.4]} 45. Bf7+ {[%clk 0:00:05.7]}
45... Kf8 {[%clk 0:00:06.5]} 46. Rd7 {[%clk 0:00:06.2]} 46... Be5 {[%clk
0:00:05.3]} 47. Rb7 {[%clk 0:00:06.6]} 47... Bc3 {[%clk 0:00:04]} 48. Rb6 {[%clk
0:00:06.3]} 48... a5 {[%clk 0:00:01.6]} 49. Re6 {[%clk 0:00:06.5]} 1-0